Cogmind - Beta 14 @@@ ROGUE MODE // 2025.03.20 @ 15:36:45 Player: Lava Result: Destroyed by S-10 Pest with Light Assault Rifle Performance ------------- Evolutions (0) 0 Regions Visited (4) 800 Robots Destroyed (23) 115 Value Destroyed (465) 465 Prototype IDs (23) 460 Alien Tech Used (0) 0 Bonus (300) 300 TOTAL SCORE: 2140 Bonus ------- Aligned with FarCom 300 Cogmind --------- Core Integrity 0/250 Matter 281/300 Energy 118/250 System Corruption 1% Temperature Cool (0) Movement Treading (320) Ox2 Location -9/Mines Parts ------- > --- POWER (1) -------- Ion Engine > --- PROPULSION (2) --- Improved Treads Improved Treads > --- UTILITY (2) ------ Huge Storage Unit Sensor Array > --- WEAPON (2) ------- Latent Energy Streamer Light Assault Rifle > --- INVENTORY (25) --- Ion Engine Ion Engine Improved Treads Improved Treads Improved Treads Improved Treads Improved Treads Cooling System Large Storage Unit Visual Processing Unit Signal Interpreter Terrain Scanner Terrain Scan Processor Targeting Computer ECM Suite Utility Shielding Utility Shielding Shield Generator EM Pulse Gun Assault Rifle Light Assault Rifle Grenade Launcher Datajack Mining Claw Katana Peak State ------------ > --- POWER ------------ Ion Engine > --- PROPULSION ------- Improved Treads Improved Treads > --- UTILITY ---------- Huge Storage Unit Sensor Array > --- WEAPON ----------- Latent Energy Streamer Light Assault Rifle > --- INVENTORY -------- Ion Engine Ion Engine Improved Treads Improved Treads Improved Treads Improved Treads Improved Treads Improved Treads Large Storage Unit Visual Processing Unit Signal Interpreter Terrain Scanner Terrain Scan Processor Targeting Computer ECM Suite Utility Shielding Utility Shielding Shield Generator EM Pulse Gun Assault Rifle Light Assault Rifle Light Assault Rifle Grenade Launcher Datajack Mining Claw [Rating: 21] Favorites ----------- Power Light Ion Engine Engine Light Ion Engine Propulsion Improved Treads Treads Improved Treads Utility Sensor Array Device Sensor Array Storage Huge Storage Unit Weapon Light Assault Rifle Energy Gun EM Pulse Gun Energy Cannon Latent Energy Streamer Ballistic Gun Light Assault Rifle Slashing Weapon Mining Claw Build | -11 -10 -10 -10 -9 ------- Run | Yrd Mat Min Exi Min Slots Evolved . | . . . . . Power . | . . . . . Propulsion . | . . . . . Utility . | . . . . . Weapon . | . . . . . Parts Attached 24 | 6 12 1 . 5 Power 2 | 1 . 1 . . Engine 2 | 1 . 1 . . Core . | . . . . . Reactor . | . . . . . Propulsion 7 | 2 4 . . 1 Treads 7 | 2 4 . . 1 Leg . | . . . . . Wheel . | . . . . . Hover . | . . . . . Flight . | . . . . . Utility 4 | 1 3 . . . Device 1 | . 1 . . . Storage 3 | 1 2 . . . Processor . | . . . . . Hackware . | . . . . . Protection . | . . . . . Artifact . | . . . . . Weapon 11 | 2 5 . . 4 Energy Gun 1 | . 1 . . . Energy Cannon 2 | . . . . 2 Ballistic Gun 7 | 2 3 . . 2 Ballistic Cannon . | . . . . . Launcher . | . . . . . Special Weapon . | . . . . . Impact Weapon . | . . . . . Slashing Weapon 1 | . 1 . . . Piercing Weapon . | . . . . . Special Melee Weapon . | . . . . . Unidentified Prototypes . | . . . . . Parts Lost 3 | . 2 . . 1 Power 1 | . 1 . . . Propulsion . | . . . . . Utility . | . . . . . Weapon 2 | . 1 . . 1 Highest Loss Streak 2 | . 2 . . 1 To Critical Strikes . | . . . . . Average Slot Usage (%) 94 | . 91 100 100 99 Engine 9 | . 7 14 14 14 Treads 27 | . 27 28 28 27 Device 13 | . 13 14 14 14 Storage 14 | . 14 14 14 14 Ballistic Gun 26 | . 26 28 28 27 Peak Build Rating 21 | 6 11 12 13 21 Average Rating 10 | 4 8 12 12 13 On Entrance 8 | . 6 11 12 13 Naked Turns . | . . . . . Heaviest Build 97 | 10 86 88 88 97 Greatest Support 46 | 40 46 46 46 46 Greatest Overweight (x) 8 | 1 8 1 1 2 Average Overweight (x) 1 | . 1 1 1 1 Largest Inventory Capacity 25 | 8 25 25 25 25 Average Capacity 23 | 7 23 25 25 25 Most Carried 25 | 6 25 25 25 25 Average Carried 20 | 3 19 24 24 24 Final Capacity 25 | 8 25 25 25 25 Final Carried 25 | 6 24 25 25 25 Class Distribution -------------------- 85% | Mutant 14% | Skirmisher Dominant Class ---------------- Mutant | -10/Materials Mutant | -10/Mines Mutant | -10/Exiles Skirmisher | -9/Mines Resources | -11 -10 -10 -10 -9 ----------- Run | Yrd Mat Min Exi Min Matter Collected 542 | 217 254 10 . 61 Remotely . | . . . . . Salvage Created 621 | . 485 . . 136 Parts 57 | . 48 . . 9 Haulers Intercepted 1 | . 1 . . . Recyclers Shooed . | . . . . . Parts Field Recycled . | . . . . . Retrieved Matter . | . . . . . Parts Self-Destructed . | . . . . . Prevented . | . . . . . Kills | -11 -10 -10 -10 -9 ------- Run | Yrd Mat Min Exi Min Combat Hostiles Destroyed 15 | . 12 . . 3 Guns 14 | . 11 . . 3 AOE 1 | . 1 . . . Classes Destroyed 8 | . 7 . . 1 Worker 2 | . 2 . . . Builder 1 | . 1 . . . Hauler 1 | . 1 . . . Recycler 1 | . 1 . . . Watcher 3 | . 3 . . . Swarmer 6 | . 6 . . . Grunt 8 | . 6 . . 2 Duelist 1 | . . . . 1 Best Kill Streak 8 | . 8 . . 3 Combat Bots Only 5 | . 5 . . 3 Max Kills in Single Turn 2 | . 2 . . 1 Gunslinging . | . . . . . Exploded 1 | . 1 . . . Melee . | . . . . . Uniques/NPCs Destroyed . | . . . . . Combat | -11 -10 -10 -10 -9 -------- Run | Yrd Mat Min Exi Min Hostile Shots Fired 128 | . 81 . . 47 Missed 39 | . 27 . . 12 Damage Taken 1033 | . 587 . . 446 Core 255 | . 127 . . 128 Absorbed by Shields . | . . . . . Core Remaining (%) 100 | 100 . . . . Volleys Fired 75 | . 61 . . 14 Largest 2 | . 2 . . 2 Hottest 80 | . 60 . . 80 Shots Fired 150 | . 122 . . 28 Gun 149 | . 122 . . 27 Cannon 1 | . . . . 1 Launcher . | . . . . . Special . | . . . . . Kinetic 133 | . 106 . . 27 Thermal . | . . . . . Explosive . | . . . . . Electromagnetic 17 | . 16 . . 1 Robot Hit Streak 10 | . 9 . . 10 Robot Miss Streak 4 | . 4 . . 2 Penetration Max . | . . . . . Secondary Targets 2 | . 1 . . 1 Max Gunslinging Chain 1 | . 1 . . 1 Shots Hit Robots 89 | . 68 . . 21 Core Hits 41 | . 33 . . 8 Critical Kills . | . . . . . Critical Parts Destroyed . | . . . . . Critical Strikes 1 | . 1 . . . Corrupt 1 | . 1 . . . Melee Attacks 14 | . 14 . . . Impact . | . . . . . Slashing 14 | . 14 . . . Piercing . | . . . . . Sneak Attacks . | . . . . . Combat Hostiles . | . . . . . Follow-up Attacks . | . . . . . Damage Inflicted 917 | . 722 . . 195 Guns 818 | . 647 . . 171 Cannons . | . . . . . Explosions 77 | . 69 . . 8 Melee . | . . . . . Ramming 22 | . 6 . . 16 Kinetic 687 | . 516 . . 171 Thermal 69 | . 69 . . . Explosive . | . . . . . Electromagnetic 139 | . 131 . . 8 Impact . | . . . . . Slashing . | . . . . . Piercing . | . . . . . Highest Corruption 1 | . . . . 1 Average Corruption 1 | . . . . 1 Corruption Purged . | . . . . . Corruption Blocked . | . . . . . Effects 1 | . . . . 1 Matter Fused 1 | . . . . 1 Overload Shots . | . . . . . Overflow Damage . | . . . . . Projectiles . | . . . . . Explosions . | . . . . . Melee . | . . . . . Knockbacks . | . . . . . Impact . | . . . . . Kinetic . | . . . . . Secondary . | . . . . . Self-Inflicted Damage 40 | . 40 . . . Shots 1 | . 1 . . . Rammed 2 | . 1 . . 1 Targets Rammed 4 | . 3 . . 1 Kicked . | . . . . . Crushed 2 | . 2 . . . Highest Temperature 40 | . 35 . . 40 Average Temperature 10 | . 10 . . 11 Received Heat Transfer 279 | . 165 . . 114 Siege Activations . | . . . . . Robots Corrupted . | . . . . . Combat Hostiles . | . . . . . Parts Fried . | . . . . . Impact Corruptions . | . . . . . Robots Melted . | . . . . . Combat Hostiles . | . . . . . Parts Melted . | . . . . . Heat Transferred 100 | . 100 . . . Parts Sabotaged . | . . . . . Parts Stolen . | . . . . . Parts Stripped . | . . . . . Power Chain Reactions 1 | . 1 . . . Latent Energy Used 57 | . . . . 57 LE Corruption 1 | . . . . 1 Alert | -11 -10 -10 -10 -9 ------- Run | Yrd Mat Min Exi Min Peak Influence 274 | . 274 35 . 75 Initial 35 | . . 35 . . Average 80 | . 91 35 . 50 Maximum Alert Level 1 | . 1 . . . Low Security (%) 95 | 100 93 100 . 100 Level 1 4 | . 6 . . . Level 2 . | . . . . . Level 3 . | . . . . . Level 4 . | . . . . . Level 5 . | . . . . . High Security . | . . . . . Max Security . | . . . . . Squads Dispatched 2 | . 2 . . . Investigation 1 | . 1 . . . Extermination . | . . . . . Reinforcement 1 | . 1 . . . Assault . | . . . . . Garrison . | . . . . . Intercept . | . . . . . Searches Triggered . | . . . . . Construction Impeded . | . . . . . Haulers Reinforced . | . . . . . Active Scanning Responses . | . . . . . Cargo Convoy Interrupts . | . . . . . Stealth | -11 -10 -10 -10 -9 --------- Run | Yrd Mat Min Exi Min Distress Signals 3 | . 3 . . . Communications Jammed . | . . . . . Distress Signals . | . . . . . Times Spotted 35 | . 29 . . 6 Peak Tracking Total 5 | . 5 . . 3 Tactical Retreats 1 | . 1 . . . Traps | -11 -10 -10 -10 -9 ------- Run | Yrd Mat Min Exi Min Traps Triggered 1 | . 1 . . . Indirectly . | . . . . . Trap Hack Attempts . | . . . . . Triggered . | . . . . . Disarmed 3 | . 3 . . . Reprogrammed . | . . . . . Reused . | . . . . . Traps Extracted . | . . . . . Installed . | . . . . . Triggered . | . . . . . Machines | -11 -10 -10 -10 -9 ---------- Run | Yrd Mat Min Exi Min Machines Disabled 1 | . 1 . . . Max in Single Turn 1 | . 1 . . . Machines Repaired . | . . . . . Machines Dismantled . | . . . . . Machines Sabotaged . | . . . . . Overloaded Fab Kills . | . . . . . Hacking | -11 -10 -10 -10 -9 --------- Run | Yrd Mat Min Exi Min Machines Accessed 8 | . 6 . 2 . Terminals 6 | . 6 . . . Fabricators . | . . . . . Repair Stations . | . . . . . Recycling Units . | . . . . . Scanalyzers . | . . . . . Garrison Access . | . . . . . Total Hacks 21 | . 18 . 3 . Successful 9 | . 6 . 3 . Failed 12 | . 12 . . . Catastrophic 2 | . 2 . . . Database Lockouts . | . . . . . Manual 5 | . 4 . 1 . Terminals 18 | . 18 . . . Fabricators . | . . . . . Repair Stations . | . . . . . Recycling Units . | . . . . . Scanalyzers . | . . . . . Garrison Access . | . . . . . Terminal Hacks 9 | . 6 . 3 . Record 2 | . . . 2 . Alert Level 1 | . 1 . . . Locate Traps 1 | . 1 . . . Disarm Traps 2 | . 2 . . . Registered Prototypes 1 | . 1 . . . Zone Layout 1 | . 1 . . . Derelict Proto ID Bank 1 | . . . 1 . Fabricator Hacks . | . . . . . Repair Station Hacks . | . . . . . Recycling Unit Hacks . | . . . . . Scanalyzer . | . . . . . Garrison Access Hacks . | . . . . . Unauthorized Hacks . | . . . . . Terminals . | . . . . . Fabricators . | . . . . . Repair Stations . | . . . . . Recycling Units . | . . . . . Scanalyzers . | . . . . . Garrison Access . | . . . . . Data Cores Recovered . | . . . . . Used . | . . . . . Hacking Detections 6 | . 6 . . . Full Trace Events 1 | . 1 . . . Feedback Events . | . . . . . Feedback Blocked . | . . . . . Robot Schematics Acquired . | . . . . . Robots Built . | . . . . . Authchips . | . . . . . Time . | . . . . . Total Robot Build Rating . | . . . . . Part Schematics Acquired . | . . . . . Parts Built . | . . . . . Authchips . | . . . . . Time . | . . . . . Total Part Build Rating . | . . . . . Parts Repaired . | . . . . . Time . | . . . . . Parts Recycled . | . . . . . Recycled Matter . | . . . . . Retrieved Matter . | . . . . . Retrieved Components . | . . . . . Parts Scanalyzed . | . . . . . Part Schematics Acquired . | . . . . . Parts Damaged . | . . . . . Bothacking | -11 -10 -10 -10 -9 ------------ Run | Yrd Mat Min Exi Min Used RIF Installer . | . . . . . Robots Hacked . | . . . . . Non-combat . | . . . . . Combat . | . . . . . Robot Hacks Applied . | . . . . . Relay Couplers Released . | . . . . . Fabnet Peak Effective % . | . . . . . Robots Rewired . | . . . . . Allies Hacked . | . . . . . Hacks Repelled . | . . . . . Allies | -11 -10 -10 -10 -9 -------- Run | Yrd Mat Min Exi Min Total Allies . | . . . . . Largest Group . | . . . . . Highest-Rated Group . | . . . . . Highest-Rated Ally . | . . . . . Total Orders . | . . . . . Ally Attacks . | . . . . . Total Damage . | . . . . . Kills . | . . . . . Allies Corrupted . | . . . . . Allies Melted . | . . . . . Intel | -11 -10 -10 -10 -9 ------- Run | Yrd Mat Min Exi Min Robot Analysis Total . | . . . . . Derelict Logs Recovered 1 | . . . . 1 Drone Launches . | . . . . . Drone Recoveries . | . . . . . Exploration | -11 -10 -10 -10 -9 ------------- Run | Yrd Mat Min Exi Min Turns Passed 3870 | 75 2534 80 612 569 Spaces Moved 1412 | 40 868 33 255 216 Core 13 | 9 4 . . . Treads 1399 | 31 864 33 255 216 Legs . | . . . . . Wheels . | . . . . . Hover . | . . . . . Flight . | . . . . . Fastest Speed 50 | 50 160 240 240 240 Average Speed 249 | 145 259 240 240 240 Slowest Speed 450 | 160 450 240 240 320 Overloaded Moves . | . . . . . Propulsion Burnouts . | . . . . . Robots Hopped . | . . . . . Cave-ins Triggered . | . . . . . Exploration Rate (%) 37 | 5 89 9 42 40 Regions Visited 4 Branch Regions 3 Pre-discovered Areas . | . . . . . Known Exits Taken . | . . . . . Unknown Exits Taken 4 | 1 1 1 1 . Scrap Searched 3 | . . 1 . 2 Spaces Dug 5 | . 5 . . . Terrain Destroyed 7 | . 7 . . . Melee 5 | . 5 . . . Projectile . | . . . . . AOE 2 | . 2 . . . Terrain Rammed . | . . . . . Walls Destroyed . | . . . . . Machines Disabled . | . . . . . Actions | -11 -10 -10 -10 -9 --------- Run | Yrd Mat Min Exi Min Total 1618 | 57 1028 35 256 242 Wait 20 | . 20 . . . Move 1408 | 39 867 32 254 216 Hop . | . . . . . Pick Up 55 | 12 36 2 1 4 Fast Attach . | . . . . . Attach 14 | 6 5 1 . 2 Detach . | . . . . . Swap 10 | . 7 . . 3 Drop 18 | . 15 . 1 2 Fire 75 | . 61 . . 14 Melee 14 | . 14 . . . Ram . | . . . . . Kick . | . . . . . Crush 4 | . 3 . . 1 Escape Stasis . | . . . . . Rewire . | . . . . . Trap . | . . . . . Miscellaneous . | . . . . . Route ------- -11/Scrapyard -10/Materials (discovered 5 exits: [*Mat x3] / [*Min] / [*Sub]) -10/Mines -10/Exiles -9/Mines History --------- Turn | Location | Event 16 | -11/Scrapyard | Discovered new exit (range 13) 76 | -11/Scrapyard | Entered Materials 309 | -10/Materials | Build established: Mutant 396 | -10/Materials | Discovered new exit (range 11) 824 | -10/Materials | Discovered new exit (range 14) 1433 | -10/Materials | Core integrity fell below 50% 1471 | -10/Materials | Discovered new exit (range 7) 1948 | -10/Materials | Discovered new exit (range 7) 2168 | -10/Materials | Discovered new exit (range 15) 2610 | -10/Materials | Entered Mines 2678 | -10/Mines | Deemed a non-threat by the Exiles lab entrance 2678 | -10/Mines | Discovered new exit (range 5) 2690 | -10/Mines | Entered Exiles 2750 | -10/Exiles | Met 8R-AWN 2791 | -10/Exiles | Met EX-HEX 2856 | -10/Exiles | Met EX-BIN 2885 | -10/Exiles | Aligned with FarCom system 2887 | -10/Exiles | Given EX-Vault access code 2942 | -10/Exiles | Opened EX-Vault 3068 | -10/Exiles | Found Latent Energy Streamer 3122 | -10/Exiles | Warned to stay clear of 0b10 Research branches 3275 | -10/Exiles | Discovered new exit (range 14) 3302 | -10/Exiles | Left Exiles lab with Latent Energy Streamer 3302 | -10/Exiles | Entered Mines 3325 | -9/Mines | Core integrity fell below 20% 3381 | -9/Mines | Found DCF Scrap (12 items) 3597 | -9/Mines | Build established: Skirmisher 3871 | -9/Mines | Destroyed by S-10 Pest with Light Assault Rifle Last Messages --------------- 03381_ Found Lgt. Ion Engine. 03381_ Found Lgt. Treads. 03381_ Found Arm. Wheel. 03381_ Found Imp. Treads. 03381_ Found Hcp. Matter Pod. 03381_ Found Cooling System. 03381_ Found Mining Laser. 03381_ Found Hvy. EM Pulse Gun. 03381_ Found 131 Matter. A note is attached: "With love, from the DCF." 03386_ Dropped Heat Sink. 03386_ Acquired Cooling System. 03427_ Slammed into T-07 Excavator. 03452_ K-01 Serf collects debris. 03592_ Acquired derelict log, extracted data. Data stored: Factory entrances (x1). 03638_ Searching scrap... 03638_ Found Particle Gun. 03638_ Found 32 Matter. 03868_ System corrupted: Matter fused (-8). Map ----- +----------------------------------------------------+ | ????????????## ##???????????????????????????????? | | ????????????#! #???????????????????????????????? | | ????????????#! #???????????????????????????????? | | ?????????????# #???????????????????????????????? | | ????????????## #????????????????????????????????? | | ???????######! #????????????????????????????????? | | ??????## [#????????????????????????????????? | | ??????# !##????????????????????????????????? | | ??????# ### ##?????????????????????????????????? | | ?###### #?# ##??????????????????????????????????? | | ?# #?# #???????????????????????????????????? | | ?# #### ### #???????????????????????????????????? | | ?# #??# #???????????????????????????????????? | | ?# #??###### #?????????????????????? s???????????? | | ?# #???????# #############????????? ???????????? | | ?# #???????# #???????? s ??????????? | | ?# #???????############ #?###??? ??????????? | | ?# #????????????????### ## ##?# ??????????? | | ?# #?################ # ## ???????????? | | ?# #?# #????????????? | | ?# #?# #?????????????? | | ?# #?# ########## s##?????????????? | | ?# #?# #????????## ##??????????????? | | ?# #?# ###???????## ##???????????????? | | ?# #?# ##???????#% ## #????????????????? | | ## #?# #???????# [ @##? ?#????????????????? | | ### #???????## #??? #????????????????? | | #????????### ##???? #????????????????? | | """ ############## #?????##????????????????? | | """ #???????????????????????? | | """ #???????????????????????? | | #################???????????????????????? | | ##???????????????????????????????????????? | | ##????????????????????????????????????????? | | ##?????????????????????????????????????????? | | ###?????????#????????????????????????????????? | | ##??????????? ????????????????????????????????? | | ##??????????# ????????????????????????????????? | | #########??# #???????????????????????????????? | | #?## ???????????????????????????????? | | ###### ### ???????????????????????????????? | | ##????# ## ???????????????????????????????? | | ####?????# #? ???????????????????????????????? | | ##????????# #?? #???????????????????????????????? | | #?????????# #??# #########???????????????????????? | | ??????????# ####*## #???????????????????????? | | ??????????# =|*!* % %#???????????????????????? | | ??????????#######[# #???????????????????????? | | ????????????????#%# = #???????????????????????? | | ?????#####??????# # = #???????????????????????? | +----------------------------------------------------+ Best States ------------- Heat Dissipation 25 Energy Generation 10 Energy Capacity 250 Matter Stores 300 Matter Capacity 300 Sight Range 16 Robot Scan Range 14 Terrain Scan Density 10 Evasion (%) 40 Recoil Reduction 2 Item Schematics ----------------- None Robot Schematics ------------------ None Fabricated ------------ Nothing Alien Tech Used ----------------- None Achievements -------------- None Challenges ------------ None Game ------ Seed DrainedAssaultLauncher Manual? 0 Play Time 00:20:46 Cumulative 23.4 hours Start 2025.03.20 @ 15:17:11 End 2025.03.20 @ 15:36:45 Sessions 1 Manual Loads 0 Difficulty Rogue Special Mode None Game No. 39 Rogue 39 Adventurer 0 Explorer 0 Win Type - Total 0 Types 0/0/0/0/0/0/0/0/0 Lore% 12 Gallery% 23 Achievement% 22 Wizard Run 0 Options --------- Layout 1 ASCII 0 Keyboard 0 Movement Mouse Keybinds 0 Fullscreen 1 Font 32/SmallcapsGlow Map View 50x40 Zoom Use 0% Tactical HUD 1 Map Filters NONE Filters NONE Steam 1 RUN: 92fb9d9e-ef0e-4451-a41f-38b282ee4e83